Cogmind - Beta 15 @@@ ROGUE MODE // 2025.06.19 @ 18:08:47 Player: Mogwok Wargfriend Result: Destroyed by 83-DBT(R) with Subdweller Laser Performance ------------- Evolutions (0) 0 Regions Visited (2) 400 Robots Destroyed (26) 130 Value Destroyed (567) 567 Prototype IDs (0) 0 Alien Tech Used (0) 0 Bonus (0) 0 TOTAL SCORE: 1097 Bonus ------- None Cogmind --------- Core Integrity 0/250 Matter 274/300 Energy 131/250 System Corruption 0% Temperature Cool (6) Movement Treading (160) Location -10/Subcaves Parts ------- > --- POWER (1) -------- Ion Engine > --- PROPULSION (2) --- Light Treads Light Treads > --- UTILITY (2) ------ Small Storage Unit Structural Scanner > --- WEAPON (2) ------- Riot Gun Mining Claw > --- INVENTORY (8) ---- Subdweller Power Source Light Treads Improved Heat Sink Dirty Datajack (20) Scrap Shield Fragment (49) Peak State ------------ > --- POWER ------------ Ion Engine > --- PROPULSION ------- Wheel Wheel > --- UTILITY ---------- Small Storage Unit Improved Terrain Scanner > --- WEAPON ----------- Small Laser Assault Rifle > --- INVENTORY -------- Ion Engine Light Treads Light Treads Compact Wheel Improved Heat Sink Medium Laser Assault Rifle Datajack [Rating: 10] Favorites ----------- Power Ion Engine Engine Ion Engine Propulsion Wheel Treads Light Treads Wheel Wheel Utility Small Storage Unit Device Structural Scanner Storage Small Storage Unit Weapon Assault Rifle Energy Gun Medium Laser Ballistic Gun Assault Rifle Slashing Weapon Mining Claw Build | -11 -10 -10 ------- Run | Yrd Mat Sub Slots Evolved . | . . . Power . | . . . Propulsion . | . . . Utility . | . . . Weapon . | . . . Parts Attached 19 | 9 4 6 Power 3 | 1 1 1 Engine 3 | 1 1 1 Core . | . . . Reactor . | . . . Propulsion 7 | 4 1 2 Treads 2 | . . 2 Leg . | . . . Wheel 5 | 4 1 . Hover . | . . . Flight . | . . . Utility 3 | 2 1 . Device 2 | 1 1 . Storage 1 | 1 . . Processor . | . . . Hackware . | . . . Protection . | . . . Artifact . | . . . Weapon 6 | 2 1 3 Energy Gun 3 | 1 1 1 Energy Cannon . | . . . Ballistic Gun 2 | 1 . 1 Ballistic Cannon . | . . . Launcher . | . . . Special Weapon . | . . . Impact Weapon . | . . . Slashing Weapon 1 | . . 1 Piercing Weapon . | . . . Special Melee Weapon . | . . . Unidentified Prototypes . | . . . Parts Lost 6 | . 1 5 Power 1 | . . 1 Propulsion 1 | . . 1 Utility . | . . . Weapon 4 | . 1 3 Highest Loss Streak 3 | . 1 3 To Critical Strikes . | . . . Average Backups 7 | 5 7 7 Power 1 | 1 1 1 Propulsion 2 | 3 3 1 Utility . | . . 1 Weapon 1 | . 1 1 Tool/Special . | . . . Unused Backups 12 | 2 3 7 Power 2 | . 1 1 Propulsion 5 | 2 1 2 Utility 3 | . 1 2 Weapon . | . . . Tool/Special 2 | . . 2 Average Slot Usage (%) 99 | . 99 99 Engine 13 | . 14 13 Treads 8 | . . 20 Wheel 19 | . 27 7 Device 14 | . 14 14 Storage 14 | . 14 14 Energy Gun 14 | . 14 14 Ballistic Gun 14 | . 14 14 Peak Build Rating 10 | 9 10 10 Average Rating 8 | 5 9 7 On Entrance 5 | . 9 8 Naked Turns . | . . . Heaviest Build 15 | 14 15 15 Greatest Support 40 | 32 20 40 Greatest Overweight (x) 1 | . 1 1 Average Overweight (x) . | . . . Largest Inventory Capacity 8 | 8 8 8 Average Capacity 7 | 7 8 8 Most Carried 8 | 8 8 8 Average Carried 7 | 5 7 7 Final Capacity 8 | 8 8 8 Final Carried 8 | 8 8 5 Class Distribution -------------------- 100% | Mutant Dominant Class ---------------- Mutant | -10/Materials Mutant | -10/Subcaves Resources | -11 -10 -10 ----------- Run | Yrd Mat Sub Matter Collected 568 | 283 196 89 Remotely . | . . . Salvage Created 879 | 106 464 309 Parts 50 | 6 31 13 Haulers Intercepted 1 | . 1 . Recyclers Shooed . | . . . Parts Field Recycled . | . . . Retrieved Matter . | . . . Parts Self-Destructed 9 | . . 9 Prevented . | . . . Kills | -11 -10 -10 ------- Run | Yrd Mat Sub Combat Hostiles Destroyed 20 | . 14 6 Guns 20 | . 14 6 Classes Destroyed 9 | 2 5 2 Worker 1 | . 1 . Tunneler 1 | 1 . . Hauler 1 | . 1 . Recycler 1 | 1 . . Watcher 2 | . 2 . Swarmer 9 | . 9 . Grunt 7 | . 5 2 Sentry 1 | . . 1 Subdweller 3 | . . 3 Best Kill Streak 4 | 1 4 2 Combat Bots Only 3 | . 3 2 Max Kills in Single Turn 2 | 1 2 1 Gunslinging 1 | . 1 . Exploded . | . . . Melee . | . . . Uniques/NPCs Destroyed . | . . . Combat | -11 -10 -10 -------- Run | Yrd Mat Sub Hostile Shots Fired 104 | . 65 39 Missed 24 | . 13 11 Hits 80 | . 52 28 Projectile 80 | . 52 28 Damage Taken 998 | . 502 496 Core 256 | . 187 69 Absorbed by Shields . | . . . Regen/Repaired (Parts) 8 | . 8 . Core Remaining (%) 100 | 100 . . Volleys Fired 73 | 2 46 25 Largest 2 | 2 2 2 Hottest 70 | 60 70 70 Shots Fired 145 | 4 91 50 Gun 145 | 4 91 50 Cannon . | . . . Launcher . | . . . Special . | . . . Kinetic 73 | 2 46 25 Thermal 72 | 2 45 25 Explosive . | . . . Electromagnetic . | . . . Robot Hit Streak 20 | 3 13 20 Robot Miss Streak 5 | 1 5 2 Penetration Max . | . . . Secondary Targets 1 | . 1 . Max Gunslinging Chain 1 | . 1 . Shots Hit Robots 104 | 3 59 42 Core Hits 41 | 2 26 13 Critical Kills . | . . . Critical Parts Destroyed 1 | . . 1 Critical Strikes 6 | . 2 4 Burn 5 | . 2 3 Destroy 1 | . . 1 Melee Attacks . | . . . Impact . | . . . Slashing . | . . . Piercing . | . . . Sneak Attacks . | . . . Combat Hostiles . | . . . Follow-up Attacks . | . . . Damage Inflicted 1318 | 39 736 543 Guns 1318 | 39 736 543 Cannons . | . . . Explosions . | . . . Melee . | . . . Ramming . | . . . Kinetic 667 | 29 350 288 Thermal 651 | 10 386 255 Explosive . | . . . Electromagnetic . | . . . Impact . | . . . Slashing . | . . . Piercing . | . . . Highest Corruption . | . . . Average Corruption . | . . . Corruption Purged . | . . . Corruption Blocked . | . . . Overload Shots . | . . . Overflow Damage . | . . . Projectiles . | . . . Explosions . | . . . Melee . | . . . Knockbacks . | . . . Impact . | . . . Kinetic . | . . . Secondary . | . . . Self-Inflicted Damage . | . . . Shots . | . . . Rammed . | . . . Targets Rammed . | . . . Kicked . | . . . Crushed . | . . . Highest Temperature 48 | . 48 6 Average Temperature 17 | . 17 6 Received Heat Transfer 327 | . 165 162 Siege Activations . | . . . Martial Activations . | . . . Shielding Activations . | . . . Robots Disrupted . | . . . Combat Hostiles . | . . . Robots Corrupted . | . . . Combat Hostiles . | . . . Parts Fried . | . . . Impact Corruptions . | . . . Robots Melted . | . . . Combat Hostiles . | . . . Parts Melted 1 | . . 1 Heat Transferred 2044 | 25 1057 962 Parts Sabotaged . | . . . Parts Stolen . | . . . Parts Stripped . | . . . Power Chain Reactions . | . . . Alert | -11 -10 -10 ------- Run | Yrd Mat Sub Maximum Alert Level . | . . . Low Security (%) 100 | 100 100 . Level 1 . | . . . Level 2 . | . . . Level 3 . | . . . Level 4 . | . . . Level 5 . | . . . High Security . | . . . Max Security . | . . . Peak Influence 139 | 5 139 . Initial . | . . . Average 50 | . 57 . Influence Increases 496 | 10 416 70 Destroy 0b10 Robot/C 340 | . 280 60 Destroy 0b10 Robot/NC 30 | 10 20 . Destroy Leader 66 | . 56 10 Successful Hack 29 | . 29 . Destroy Structure 1 | . 1 . Lose Combat Pursuer 30 | . 30 . Influence Decreases 496 | 10 396 90 Entered New Map 10 | . . 10 Time Decay 456 | 10 386 60 Lost Part 30 | . 10 20 Squads Dispatched 1 | . 1 . Investigation 1 | . 1 . Extermination . | . . . Reinforcement . | . . . Assault . | . . . Garrison . | . . . Intercept . | . . . Searches Triggered . | . . . Construction Impeded . | . . . Haulers Reinforced . | . . . Active Scanning Responses . | . . . Cargo Convoy Interrupts . | . . . Stealth | -11 -10 -10 --------- Run | Yrd Mat Sub Distress Signals 1 | . 1 . Communications Jammed . | . . . Distress Signals . | . . . Times Spotted 28 | . 19 9 Peak Tracking Total 4 | . 4 2 Tactical Retreats 1 | . 1 . Traps | -11 -10 -10 ------- Run | Yrd Mat Sub Traps Triggered . | . . . Indirectly . | . . . Trap Hack Attempts . | . . . Triggered . | . . . Disarmed . | . . . Reprogrammed . | . . . Reused . | . . . Traps Extracted . | . . . Installed . | . . . Triggered . | . . . Machines | -11 -10 -10 ---------- Run | Yrd Mat Sub Machines Disabled . | . . . Max in Single Turn . | . . . Machines Repaired . | . . . Machines Dismantled . | . . . Machines Sabotaged . | . . . Overloaded Fab Kills . | . . . Hacking | -11 -10 -10 --------- Run | Yrd Mat Sub Machines Accessed 9 | . 9 . Terminals 7 | . 7 . Fabricators . | . . . Repair Stations 1 | . 1 . Recycling Units 1 | . 1 . Scanalyzers . | . . . Garrison Access . | . . . Total Hacks 28 | . 28 . Successful 14 | . 14 . Failed 13 | . 13 . Catastrophic . | . . . Database Lockouts 1 | . 1 . Manual 17 | . 17 . Terminals 23 | . 23 . Fabricators . | . . . Repair Stations 4 | . 4 . Recycling Units 1 | . 1 . Scanalyzers . | . . . Garrison Access . | . . . Terminal Hacks 6 | . 6 . Robot Analysis 2 | . 2 . Branch Access Points 1 | . 1 . Emergency Access Points 1 | . 1 . Alert Level 1 | . 1 . Locate Traps 1 | . 1 . Fabricator Hacks . | . . . Repair Station Hacks 3 | . 3 . Scan Component 2 | . 2 . Repair 1 | . 1 . Recycling Unit Hacks . | . . . Scanalyzer . | . . . Garrison Access Hacks . | . . . Unauthorized Hacks 5 | . 5 . Terminals 3 | . 3 . Botnet 2 | . 2 . Operators 1 | . 1 . Fabricators . | . . . Repair Stations 1 | . 1 . Mechanics 1 | . 1 . Recycling Units 1 | . 1 . Reject 1 | . 1 . Scanalyzers . | . . . Garrison Access . | . . . Data Cores Recovered . | . . . Used . | . . . Hacking Detections 9 | . 9 . Full Trace Events 2 | . 2 . Feedback Events . | . . . Feedback Blocked . | . . . Robot Schematics Acquired . | . . . Robots Built . | . . . Authchips . | . . . Time . | . . . Total Robot Build Rating . | . . . Part Schematics Acquired . | . . . Parts Built . | . . . Authchips . | . . . Time . | . . . Total Part Build Rating . | . . . Parts Repaired 1 | . 1 . Time 26 | . 26 . Parts Recycled . | . . . Recycled Matter . | . . . Retrieved Matter . | . . . Retrieved Components . | . . . Parts Scanalyzed . | . . . Part Schematics Acquired . | . . . Parts Damaged . | . . . Bothacking | -11 -10 -10 ------------ Run | Yrd Mat Sub Used RIF Installer . | . . . Robots Hacked . | . . . Non-combat . | . . . Combat . | . . . Robot Hacks Applied . | . . . Relay Couplers Released . | . . . Fabnet Peak Effective % . | . . . Robots Rewired . | . . . Allies Hacked . | . . . Hacks Repelled . | . . . Allies | -11 -10 -10 -------- Run | Yrd Mat Sub Total Allies . | . . . Largest Group . | . . . Highest-Rated Group . | . . . Highest-Rated Ally . | . . . Total Orders . | . . . Ally Attacks . | . . . Total Damage . | . . . Kills . | . . . Allies Corrupted . | . . . Allies Melted . | . . . Intel | -11 -10 -10 ------- Run | Yrd Mat Sub Active Infowar (turns) 1783 | 17 1038 728 Terrain 851 | 17 834 . Structural 932 | . 204 728 Robot Analysis Total 2 | . 2 . Derelict Logs Recovered . | . . . Drone Launches . | . . . Drone Recoveries . | . . . Exploration | -11 -10 -10 ------------- Run | Yrd Mat Sub Turns Passed 1905 | 137 1040 728 Spaces Moved 1554 | 124 976 454 Core 14 | 14 . . Treads 293 | . . 293 Legs . | . . . Wheels 1247 | 110 976 161 Hover . | . . . Flight . | . . . Fastest Speed 50 | 50 80 80 Average Speed 95 | 85 80 131 Slowest Speed 160 | 100 95 160 Overloaded Moves . | . . . Propulsion Burnouts . | . . . Robots Hopped . | . . . Potential Cave-ins . | . . . Cave-ins Triggered . | . . . Exploration Rate (%) 42 | 4 100 23 Regions Visited 2 Branch Regions 1 Pre-discovered Areas . | . . . Known Exits Taken . | . . . Unknown Exits Taken 2 | 1 1 . Scrap Searched 3 | . . 3 Spaces Dug . | . . . Terrain Destroyed . | . . . Melee . | . . . Projectile . | . . . AOE . | . . . Terrain Rammed . | . . . Walls Destroyed . | . . . Machines Disabled . | . . . Actions | -11 -10 -10 --------- Run | Yrd Mat Sub Total 1836 | 148 1148 540 Wait 147 | . 109 38 Move 1552 | 123 975 454 Hop . | . . . Pick Up 25 | 10 6 9 Fast Attach 11 | 9 2 . Attach 8 | . 2 6 Detach 1 | . . 1 Swap 1 | . 1 . Drop 18 | 4 7 7 Fire 73 | 2 46 25 Melee . | . . . Ram . | . . . Kick . | . . . Crush . | . . . Escape Stasis . | . . . Rewire . | . . . Trap . | . . . Miscellaneous . | . . . Route ------- -11/Scrapyard -10/Materials (discovered 6 exits: [*Mat x3] / *Min x2 / [*Sub]) -10/Subcaves History --------- Turn | Location | Event 11 | -11/Scrapyard | Discovered new exit (range 16) 138 | -11/Scrapyard | Entered Materials 209 | -10/Materials | Discovered new exit (range 16) 286 | -10/Materials | Repaired Wheel 307 | -10/Materials | Build established: Mutant 381 | -10/Materials | Discovered new exit (range 16) 432 | -10/Materials | Discovered new exit (range 10) 502 | -10/Materials | Core integrity fell below 50% 543 | -10/Materials | Discovered new exit (range 10) 604 | -10/Materials | Central database locked down 604 | -10/Materials | Identified exit to Mines 639 | -10/Materials | Discovered new exit (range 16) 1168 | -10/Materials | Discovered new exit (range 10) 1178 | -10/Materials | Entered Subcaves 1179 | -10/Subcaves | Approached by a straggling Scientist 1192 | -10/Subcaves | Core integrity fell below 20% 1215 | -10/Subcaves | A swath of the cavern ceiling suddenly collapsed 1906 | -10/Subcaves | Destroyed by 83-DBT(R) with Subdweller Laser Last Messages --------------- 01591_ Found 58 Matter. 01595_ Searching scrap... 01595_ Found Riot Gun. 01595_ Found Sub. Laser. 01595_ Found 33 Matter. 01599_ Searching scrap... 01599_ Found Riot Gun. 01599_ Found Flamer. 01599_ Found 41 Matter. 01608_ Dropped Com. Wheel. 01609_ Acquired Sub. Monowheel. 01625_ Dropped Sub. Monowheel. 01626_ Acquired Riot Gun. 01686_ Subatomizers dissect the Tech Extrapolator. 01707_ Subatomizers dissect the Machine Analyzer. 01889_ Ion Engine destroyed. 01902_ Assault Rifle destroyed. 01904_ Med. Laser destroyed. Map ----- +----------------------------------------------------+ | ?????????????????????????????????????????????????? | | ?????????????????????????????????????????????????? | | ?????????????????????????????????????????????????? | | ?????????????????????????????????????????????????? | | ?????????????????????????????????????????????????? | | ?????????????????????????????????????????????????? | | ?????????????????????????????????????????????????? | | ?????????????????????????????????????????????????? | | ?????????????????????????????????????????????????? | | ?????????????????????????????????????????????????? | | ?????????????????????????????????????????????????? | | ?????????????????????????????????????????????????? | | ??????????????????#####??????????????????????????? | | ??????????????????#####??????????????????????????? | | ?????????????????? # #??????????????????????????? | | ??????????????????? ???????????????????????????? | | ?????????????????? ##????????????????????????? | | ??????????????????### ##########?????????????????? | | ??????????????????## #########?????????????????? | | ??????????????????### ## " ##?????????????????? | | ??????????????????## ##???????????????????? | | ??????????????????### # #####?" ????????????? | | ??????????????????## #### "R ????????????? | | ??????????????????## R ##???????????????? | | ??????????????????## R "##???????????????? | | ??????????????????### ##@ ###???????????????? | | ??????????????????### ##########???????????????? | | ?????????????????##### #######????????????????? | | ?????????????????##### ####? "???????????????? | | ?????????????????## """" ### "" #???????????? | | ???????????????#### " """ " ##???????????? | | ??????????????### ### ## ???????????? | | ?????????????### #### ## ??????????? | | ?????????????## #### ## ### ????????????? | | ????????????? ???## #######??? ????????????? | | ????????### ###### ####??????????????????? | | ???????### ######## ###??????????????????? | | ???????## ##### ##### ### ##?????????????? | | ???????# #### ## ########????????????? | | ??????? ### #### ###????????????? | | ??????? ## ##????????????? | | ??????## ## ###???????????? | | ??????## ## ### ###???????????? | | ??????## ##### ##???????????? | | ????????????## #### ######???????? | | ???????????? ## #### ########?????? | | ???????????? ### ##### ##### ####????? | | ?????????????#### ###### ##### ####???? | | ??????????????##### #######?## ####??? | | ?????????????###### ######## ###??? | +----------------------------------------------------+ Best States ------------- Heat Dissipation 25 Energy Generation 10 Energy Capacity 250 Matter Stores 300 Matter Capacity 300 Sight Range 16 Terrain Scan Range 16 Terrain Scan Density 10 Evasion (%) 50 Recoil Reduction 2 Item Schematics ----------------- None Robot Schematics ------------------ None Fabricated ------------ Nothing Repaired ---------- Wheel | 80% | -10/Materials Alien Tech Used ----------------- None Achievements -------------- None Challenges ------------ None Game ------ Seed MissileMicrowarpMinigun Manual? 0 Play Time 00:18:37 Cumulative 224.7 hours Start 2025.06.19 @ 03:56:22 End 2025.06.19 @ 18:08:47 Sessions 2 Manual Loads 0 Difficulty Rogue Special Mode None Game No. 212 Rogue 212 Adventurer 0 Explorer 0 Win Type - Total 1 Types 1/0/0/0/0/0/0/0/0/0 Lore% 54 Gallery% 59 Achievement% 47 Wizard Run 0 Options --------- Layout 2 ASCII 1 Keyboard 1 Movement Numpad Keybinds 0 Fullscreen 2 Font 32/TamsynBold Map View 50x44 Zoom Use 0% Tactical HUD 1 Map Filters NONE Filters NONE Steam 1 RUN: 1b9300ad-8eb0-4a72-a2ef-681647eb388e